bitfinex-derivatives/quotes_ETHF0:USTF0_20250908
["timestamp","ask_amount","ask_price","bid_price","bid_amount"]
[1757373591055,3.2078,4321.3,4321.2,0.3245]
[1757373591251,3.76686058,4321.3,4321.2,0.3245]
[1757373591843,3.76686058,4321.3,4321.0,0.1219]
[1757373592146,0.79078289,4321.2,4320.6,0.3245]
[1757373592447,3.2078,4320.7,4320.6,0.3245]
[1757373592654,3.76716288,4320.7,4320.6,0.3245]
[1757373592854,3.76716288,4320.7,4320.6,0.5298]
[1757373593461,3.76716288,4320.7,4320.6,0.7383]
[1757373595151,3.2078,4320.7,4320.6,0.7383]
[1757373606166,3.2078,4320.7,4320.6,0.5298]
[1757373606769,3.2078,4320.7,4320.6,0.3245]
[1757373608371,3.2078,4320.7,4320.6,0.5298]
[1757373613270,3.2078,4320.7,4320.5,0.1219]
[1757373613271,3.2078,4321.3,4321.1,0.2053]
[1757373613473,0.79065073,4321.2,4321.1,0.5298]
[1757373615373,0.55865073,4321.2,4321.1,0.7383]
[1757373615867,0.55865073,4321.2,4321.1,0.5298]
[1757373617385,0.55865073,4321.2,4321.1,0.3245]
[1757373618784,0.55865073,4321.2,4321.1,0.5199]
[1757373624890,0.55865073,4321.2,4321.1,0.7163]
[1757373627490,0.55865073,4321.2,4321.1,4.94772]
[1757373627692,3.2078,4321.8,4321.7,0.6845]
[1757373627997,3.4102,4322.6,4322.5,0.8015]
[1757373628992,3.7348,4322.6,4322.5,0.8015]
[1757373629689,3.9399,4322.6,4322.5,0.8015]
[1757373632998,0.7321,4322.6,4322.5,0.8015]
[1757373635891,0.7321,4322.6,4322.5,0.6845]
[1757373647106,0.1234,4322.5,4322.1,0.2928]
[1757373647312,0.7131,4322.2,4322.1,0.7083]
[1757373648907,0.1234,4322.5,4321.8,0.4957]
[1757373648908,0.5141,4321.9,4321.8,0.4957]
[1757373649109,0.7131,4321.9,4321.2,3.2078]
[1757373649416,0.7131,4321.4,4320.5,3.3248]
[1757373649713,0.7131,4321.4,4321.0,0.232]
[1757373650114,0.7131,4321.4,4321.1,0.2928]
[1757373650514,0.7131,4321.4,4321.0,0.232]
[1757373651214,0.7131,4321.4,4321.3,0.4957]
[1757373654117,0.7131,4321.4,4321.3,0.7083]
[1757373654317,1.30431201,4321.4,4321.3,0.7083]
[1757373656217,1.30438868,4321.4,4321.3,0.7083]
[1757373656820,0.7131,4321.4,4321.3,0.7083]
[1757373657419,1.30461411,4321.4,4321.3,0.7083]
[1757373658218,0.7131,4321.4,4321.3,0.7083]
[1757373663632,0.7131,4321.4,4321.0,0.232]
[1757373663815,3.3312,4321.5,4321.0,0.232]
[1757373663816,0.7131,4321.1,4321.0,0.232]
[1757373664016,0.2978,4320.9,4320.3,0.232]
[1757373664226,0.7131,4320.4,4320.3,0.7277]
[1757373665331,0.7131,4320.4,4320.0,0.1227]
[1757373665332,0.7131,4320.4,4320.0,0.2928]
[1757373665636,0.7131,4319.1,4319.0,0.2029]
[1757373665939,0.7131,4319.1,4319.0,0.7083]
[1757373666424,0.7131,4319.1,4319.0,0.831]
[1757373666629,0.2978,4319.4,4319.0,0.831]
[1757373666825,0.2978,4319.5,4319.1,0.2928]
[1757373667137,0.7131,4319.5,4319.4,0.4957]
[1757373671154,0.8365,4319.5,4319.4,0.4957]
[1757373682043,4.0443,4319.5,4319.4,0.4957]
[1757373682446,4.0443,4319.5,4319.1,0.2952]
[1757373682844,0.3181,4318.9,4318.2,0.2952]
[1757373683042,0.2024,4317.2,4317.1,0.4938]
[1757373683242,0.7352,4317.2,4317.1,0.4938]
[1757373683442,0.7352,4317.2,4316.5,3.5581]
[1757373683647,0.7352,4316.7,4316.6,0.3971]
[1757373684049,0.4171,4316.7,4316.6,0.6923]
[1757373684351,3.7283,4316.9,4316.8,0.3971]
[1757373684543,3.7283,4316.9,4316.8,0.6923]
[1757373685149,0.233,4317.3,4317.2,0.6923]
[1757373685339,3.6432,4317.4,4317.3,0.2952]
[1757373685544,3.9613,4317.4,4317.3,0.6923]
[1757373685744,4.176,4317.4,4317.3,0.6923]
[1757373688552,4.176,4317.4,4317.3,0.4938]
[1757373688852,4.176,4317.4,4316.6,0.2952]
[1757373689148,0.2024,4316.8,4316.7,0.6923]
[1757373689349,0.7352,4316.8,4316.7,0.6923]
[1757373692654,0.2024,4316.8,4316.7,0.6923]
[1757373694356,0.5205,4316.8,4316.7,0.6923]
[1757373694553,0.7352,4316.8,4316.7,0.6923]
[1757373703850,0.7352,4316.8,4316.7,0.4938]
[1757373704360,1.32489001,4316.8,4316.7,0.4938]
[1757373708459,1.32489001,4316.8,4316.5,0.5548]
[1757373708460,0.3019,4316.7,4316.5,0.5548]
[1757373708657,0.7087,4316.6,4316.5,0.5548]
[1757373708859,0.7087,4316.6,4316.5,0.7666]
[1757373709258,1.29973279,4316.6,4316.5,0.7666]
[1757373709962,1.29973279,4316.6,4316.5,0.9679]
[1757373713765,1.29973279,4316.6,4316.5,1.0964]
[1757373720465,1.29973279,4316.6,4316.5,0.9679]
[1757373730980,1.29973279,4316.6,4316.5,1.0964]
[1757373732484,0.59103279,4316.6,4316.5,1.0964]
[1757373734985,0.58952616,4316.6,4316.5,0.7736]
[1757373735294,0.58952616,4316.6,4316.5,1.0964]
[1757373737692,0.80072616,4316.6,4316.5,1.0964]
[1757373737902,0.78712616,4316.6,4316.5,1.0964]
[1757373742602,1.09162616,4316.6,4316.5,1.0964]
[1757373744493,1.29312616,4316.6,4316.5,0.232]
[1757373745298,0.5166,4316.0,4315.9,0.5396]
[1757373745596,1.41062616,4316.0,4315.9,0.5396]
[1757373746395,0.8211,4316.0,4315.9,0.5396]
[1757373746595,0.3045,4315.9,4315.3,33.9116]
[1757373746797,0.3045,4315.9,4314.7,0.5084]
[1757373746798,0.7036,4314.8,4314.7,0.5084]
[1757373746998,0.7036,4314.8,4314.7,0.7243]
[1757373756805,0.7036,4314.8,4314.7,0.5084]
[1757373766611,0.7036,4314.8,4314.7,0.7243]
[1757373776414,1.29033762,4314.8,4314.7,0.7243]
[1757373778823,1.29033762,4314.8,4314.7,0.5084]
[1757373781130,1.29033762,4314.8,4314.4,0.2978]
[1757373781323,0.8584,4314.5,4314.3,0.232]
[1757373781518,1.32373762,4314.4,4314.3,0.232]
[1757373781724,1.32373762,4314.4,4314.3,0.5298]
[1757373782029,1.32373762,4314.4,4314.3,0.7459]
[1757373783630,1.32373762,4314.4,4314.3,0.9579]
[1757373783831,1.00903762,4314.4,4314.3,0.9579]
[1757373784225,1.32373762,4314.4,4314.3,0.9579]
[1757373793842,0.737,4314.4,4314.3,0.9579]
[1757373794040,1.32314749,4314.4,4314.3,0.9579]
[1757373794340,1.32314749,4314.4,4314.3,0.5139]
[1757373795743,1.32314749,4314.4,4314.3,0.2978]
[1757373795943,1.00844749,4314.4,4313.5,0.1188]
[1757373796139,0.4223,4313.7,4313.6,0.44791]
[1757373796335,0.7218,4313.7,4313.6,0.44791]
[1757373796643,0.7218,4313.7,4313.6,0.96581]
[1757373796837,0.7218,4313.7,4313.6,0.734]
[1757373806145,0.4223,4313.7,4313.6,0.734]
[1757373806343,0.7138,4314.3,4314.2,0.7188]
[1757373806550,1.29892202,4314.3,4314.2,0.7188]
[1757373808147,0.78372202,4314.3,4314.2,0.7188]
[1757373808348,0.58512202,4314.3,4314.2,0.7188]
[1757373813352,0.78372202,4314.3,4314.2,0.7188]
[1757373813549,1.29892202,4314.3,4314.2,0.7188]
[1757373817156,0.7138,4314.3,4314.2,0.7188]
[1757373817353,0.7138,4314.7,4314.6,0.4069]
[1757373817558,0.78177555,4314.7,4314.6,0.7188]
[1757373818152,1.08127555,4314.7,4314.6,0.7188]
[1757373818656,1.29697555,4314.7,4314.6,0.7188]
[1757373821160,0.7138,4314.7,4314.6,0.7188]
[1757373828959,0.7138,4314.7,4314.6,0.5128]
[1757373829165,0.7138,4314.7,4314.6,0.3119]
[1757373829566,0.7138,4314.7,4314.6,0.5246]
[1757373832073,0.3136,4315.0,4314.6,0.4083]
[1757373832275,0.5828229,4314.9,4314.8,0.4083]
[1757373832474,1.3199229,4314.9,4314.8,0.721]
[1757373832674,1.3199229,4314.9,4314.8,0.3127]
[1757373832876,1.3199229,4314.9,4314.8,0.2127]
[1757373833074,1.3199229,4314.9,4314.8,0.5254]
[1757373833470,0.7371,4314.9,4314.8,0.5254]
[1757373834169,1.319126,4314.9,4314.8,0.5254]
[1757373834580,0.7371,4314.9,4314.8,0.5254]
[1757373834966,0.7371,4314.9,4314.8,0.721]
[1757373835172,0.2162,4314.9,4314.8,0.721]
[1757373835872,0.5298,4314.9,4314.8,0.721]
[1757373836578,0.7371,4314.9,4314.8,0.721]
[1757373836876,0.7371,4314.9,4314.8,0.5254]
[1757373839684,0.7371,4314.9,4314.8,0.721]
[1757373845892,0.7371,4314.9,4314.8,0.953]
[1757373846888,0.4235,4314.9,4314.2,0.3127]
[1757373847087,0.5209,4313.9,4313.8,0.5254]
[1757373847286,0.7371,4313.9,4313.8,0.953]
[1757373847484,0.2162,4313.9,4313.8,0.953]
[1757373847695,0.2162,4314.1,4314.0,0.1258]
[1757373847892,0.2162,4314.1,4314.0,0.5341]
[1757373848286,0.2162,4314.1,4314.0,0.8468]
[1757373848789,3.2078,4314.5,4314.0,0.8468]
[1757373848995,0.5298,4314.4,4314.3,0.4083]
[1757373849186,0.5298,4314.4,4314.3,0.721]
[1757373849485,0.2162,4314.4,4314.3,0.721]
[1757373849686,3.2078,4314.5,4314.4,0.3127]
[1757373849992,3.2078,4314.5,4314.4,0.721]
[1757373850192,3.424,4314.5,4314.4,0.721]
[1757373850394,3.7376,4314.5,4314.4,0.721]
[1757373851187,3.9449,4314.5,4314.4,0.721]
[1757373851495,3.7376,4314.5,4314.4,0.721]
[1757373851891,3.9449,4314.5,4314.4,0.721]
[1757373864409,3.9449,4314.5,4314.4,0.5254]
[1757373864604,4.0718,4314.5,4314.3,0.2976]
[1757373864909,3.3347,4314.5,4314.2,0.5296]
[1757373865104,0.7256,4314.3,4314.2,0.5296]
[1757373865504,0.7256,4314.3,4314.2,0.7381]
[1757373866111,0.7256,4314.3,4314.2,0.9402]
[1757373873717,0.7256,4314.3,4314.2,0.7381]
[1757373877725,0.7256,4314.3,4314.2,0.9402]
[1757373882124,0.418,4314.3,4314.2,0.9402]
[1757373884527,0.2143,4314.3,4314.2,0.9402]
[1757373886020,0.5219,4314.3,4314.2,0.9402]
[1757373887926,0.3005,4314.7,4314.2,0.9402]
[1757373888226,1.0825303,4314.6,4314.5,0.5294]
[1757373888429,1.2849303,4314.6,4314.5,1.0624]
[1757373888621,1.2849303,4314.6,4314.5,0.9404]
[1757373890432,1.2849303,4314.6,4314.5,0.7359]
[1757373890634,1.2849303,4314.6,4314.5,0.232]
[1757373893436,5.5167003,4314.6,4314.5,0.232]
[1757373893737,5.5167003,4314.6,4313.7,0.5039]
[1757373893738,0.7021,4313.8,4313.7,0.5039]
[1757373894032,0.7021,4313.8,4313.7,0.9404]
[1757373897137,0.1992,4313.8,4313.7,0.9404]
[1757373897537,0.4997,4313.8,4313.7,0.9404]
[1757373903333,0.3005,4314.1,4313.7,0.6394]
[1757373903539,0.4997,4314.1,4314.0,0.4074]
[1757373903839,0.4997,4314.1,4314.0,0.9404]
[1757373904545,0.7021,4314.1,4314.0,0.9404]
[1757373910650,0.7021,4314.1,4314.0,1.0624]
[1757373910845,0.3005,4314.7,4314.1,0.301]
[1757373911146,1.2848087,4314.6,4314.5,0.5039]
[1757373912448,0.7021,4314.2,4314.1,0.5039]
[1757373913350,0.3005,4314.1,4314.0,0.301]
[1757373913649,0.4997,4313.6,4313.5,4.035]
[1757373913852,0.4997,4313.6,4313.5,4.267]
[1757373914241,0.7021,4313.6,4313.5,4.035]
[1757373914448,0.7021,4313.1,4313.0,3.2078]
[1757373915051,0.7021,4313.1,4313.0,3.7117]
[1757373915949,0.7021,4313.1,4313.0,3.9162]
[1757373919264,0.7021,4313.1,4313.0,4.037]
[1757373923156,0.4016,4313.1,4313.0,4.037]
[1757373923357,0.4016,4313.1,4313.0,4.27]
[1757373925661,0.1992,4313.1,4313.0,4.27]
[1757373926156,0.5167,4313.1,4313.0,4.27]
[1757373928365,0.5167,4313.1,4313.0,1.0622]
[1757373928968,0.1992,4313.1,4313.0,1.0622]
[1757373930865,0.5167,4313.1,4313.0,1.0622]
[1757373941277,0.7203,4313.1,4313.0,1.0622]
[1757373943077,0.1992,4313.1,4313.0,1.0622]
[1757373951383,1.32401437,4313.1,4313.0,0.5039]
[1757373953385,0.78311437,4313.1,4313.0,0.8469]
[1757373953889,1.10751437,4313.1,4313.0,0.8469]
[1757373955181,1.32401437,4313.1,4313.0,0.8469]
[1757373955383,1.32401437,4313.1,4313.0,0.7193]
[1757373962892,1.32339664,4313.1,4313.0,0.7193]
[1757373963886,0.1233,4313.0,4312.8,0.17621758]
[1757373964091,0.7373,4312.9,4312.8,0.17621758]
[1757373964491,0.7373,4312.9,4312.8,0.47291758]
[1757373964994,0.7373,4312.9,4312.8,0.67321758]
[1757373967094,0.7373,4312.9,4312.8,0.88861758]
[1757373980418,1.32064013,4312.9,4312.8,0.88861758]
[1757373982320,3.526,4313.5,4312.9,0.3112]
[1757373982623,0.79987889,4313.4,4313.3,0.7188]
[1757373982825,1.11807889,4313.4,4313.3,0.7188]
[1757373986127,0.79398393,4313.4,4313.3,0.7188]
[1757373986328,1.11218393,4313.4,4313.3,0.7188]
[1757373988022,0.79398393,4313.4,4313.3,0.7188]
[1757373988222,1.11218393,4313.4,4313.3,0.7188]
[1757373988623,1.31498393,4313.4,4313.3,0.7188]
[1757373989232,1.31498393,4313.4,4313.3,0.5076]
[1757373989530,1.31498393,4313.4,4313.1,0.3112]
[1757373989732,3.3282,4313.5,4313.1,0.3112]
[1757373989733,0.7374,4313.2,4313.1,0.3112]
[1757373989926,1.31498393,4313.2,4313.1,0.3112]
[1757373990930,1.31498393,4313.2,4313.0,0.232]
[1757373991232,1.31498393,4313.1,4313.0,0.232]
[1757373991532,1.31498393,4313.1,4313.0,0.5432]
[1757373994135,1.31498393,4313.1,4313.0,0.232]
[1757373997331,1.31498393,4313.1,4312.8,0.17621758]
[1757373997332,0.7374,4312.9,4312.8,0.17621758]
[1757373999437,1.31453275,4312.9,4312.8,0.17621758]
[1757373999739,1.54753275,4312.9,4312.8,0.17621758]
[1757374007632,1.31453275,4312.9,4312.8,0.69761758]
[1757374007837,1.54753275,4312.9,4312.8,0.91291758]
[1757374008839,1.31453275,4312.9,4312.8,0.91291758]
[1757374009035,1.54753275,4312.9,4312.8,0.91291758]
[1757374011241,1.54753275,4312.9,4312.8,0.69761758]
[1757374011940,1.54753275,4312.9,4312.8,0.17621758]
[1757374016146,1.54753275,4312.9,4312.8,0.49821758]
[1757374016549,1.54753275,4312.9,4312.8,0.17621758]
[1757374017543,1.54753275,4312.9,4312.8,0.49821758]
[1757374017748,1.54753275,4312.9,4312.8,0.69761758]
[1757374021155,1.54753275,4312.9,4312.8,0.17621758]
[1757374021651,1.54753275,4312.9,4312.8,0.69761758]
[1757374023656,1.54753275,4312.9,4312.8,0.17621758]
[1757374025155,1.54753275,4312.9,4312.2,0.322]
[1757374025357,3.6362,4312.4,4312.3,0.5214]
[1757374025954,3.9328,4312.4,4312.3,0.5214]
[1757374026154,4.50911755,4312.4,4312.3,0.5214]
[1757374026658,4.50911755,4312.4,4311.6,3.4408]
[1757374026860,0.2118,4311.8,4311.7,0.64661]
[1757374027355,0.2118,4311.8,4311.7,0.96861]
[1757374027556,0.2118,4311.8,4311.7,0.7367]
[1757374028361,0.2966,4312.0,4311.8,0.322]
[1757374028559,0.5084,4312.0,4311.9,0.7367]
[1757374029057,0.725,4312.0,4311.9,0.7367]
[1757374029657,1.42438449,4312.0,4311.9,0.5214]
[1757374029853,1.42438449,4312.0,4311.6,0.233]
[1757374030058,3.9328,4311.8,4311.7,0.7367]
[1757374031656,3.9328,4311.8,4311.7,0.322]
[1757374032064,3.9328,4311.8,4311.7,0.5214]
[1757374034960,3.9328,4311.8,4311.2,0.322]
[1757374034961,0.4284,4311.7,4311.2,0.322]
[1757374035156,0.4284,4311.7,4310.8,0.233]
[1757374035157,0.5084,4310.9,4310.8,0.233]
[1757374035364,0.725,4310.9,4310.8,0.6477]
[1757374035565,0.725,4310.9,4310.8,0.9697]
[1757374038779,0.725,4310.9,4310.1,3.2078]
[1757374038980,0.3006,4310.2,4310.0,0.3163]
[1757374039183,0.725,4310.1,4310.0,0.3163]
[1757374039478,0.233,4310.4,4309.6,3.2078]
[1757374039479,0.4244,4309.8,4309.6,3.2078]
[1757374039668,0.3006,4309.7,4309.6,3.5241]
[1757374039866,0.725,4309.7,4309.6,3.7336]
[1757374040276,0.725,4309.7,4309.6,3.2078]
[1757374040675,0.725,4309.7,4309.6,3.7336]
[1757374041177,0.725,4309.7,4309.6,3.9366]
[1757374042173,0.725,4309.7,4308.8,0.41771]
[1757374042174,5.55644,4309.7,4307.8,2.07503173]
[1757374042381,3.2078,4308.5,4307.8,0.2095]
[1757374042674,41.152,4309.6,4308.1,0.3163]
[1757374042675,0.80852372,4308.4,4308.1,0.3163]
[1757374042876,3.2078,4308.2,4307.5,0.4428]
[1757374043176,3.2078,4307.6,4307.5,0.8553]
[1757374043375,3.2078,4307.6,4306.5,0.2335]
[1757374043376,3.4438,4307.6,4306.5,0.1265]
[1757374043574,3.6126,4306.6,4306.5,0.539]
[1757374043872,3.6126,4306.6,4306.5,0.1265]
[1757374044074,3.7391,4306.6,4306.5,0.4428]
[1757374044272,3.7391,4306.6,4306.0,0.1265]
[1757374044578,3.6126,4306.1,4306.0,0.8553]
[1757374044876,3.2078,4306.1,4306.0,0.8553]
[1757374045269,3.6126,4306.1,4306.0,0.1265]
[1757374045577,0.4244,4305.6,4305.5,0.4428]
[1757374045767,3.8852,4305.6,4305.0,0.1265]
[1757374045964,0.4244,4305.0,4304.9,0.5258]
[1757374046176,0.4244,4305.0,4304.9,0.7288]
[1757374046369,3.8852,4305.6,4305.5,0.1265]
[1757374046565,3.8852,4305.6,4305.5,0.6523]
[1757374046767,3.6322,4305.6,4305.0,0.1265]
[1757374046971,0.4244,4305.3,4305.2,0.7288]
[1757374047367,0.4244,4304.6,4304.5,0.8553]
[1757374047574,3.2078,4305.1,4305.0,0.1265]
[1757374047774,3.6322,4305.1,4304.5,0.1265]
[1757374047980,0.253,4304.4,4304.0,0.539]
[1757374048281,0.4244,4304.4,4304.0,0.1265]
[1757374048481,0.2106,4303.6,4303.5,0.8553]
[1757374048882,0.2106,4303.6,4303.5,0.6523]
[1757374048883,3.6322,4303.6,4303.5,0.6523]
[1757374049179,3.4184,4303.6,4303.5,0.8553]
[1757374049373,3.6322,4304.1,4304.0,0.6523]
[1757374049678,3.8852,4304.1,4304.0,0.6523]
[1757374049987,3.8852,4304.1,4303.0,0.1265]
[1757374050174,0.4244,4303.1,4303.0,0.6523]
[1757374050370,0.4244,4302.9,4301.8,3.2078]
[1757374050676,0.1265,4303.5,4303.0,0.4428]
[1757374050677,3.4522,4303.1,4303.0,0.4428]
[1757374050978,0.2444,4302.6,4302.1,0.3163]
[1757374051277,0.2444,4302.6,4302.0,0.1265]
[1757374051580,0.2444,4302.6,4301.6,3.2078]
[1757374051581,0.2444,4302.1,4301.6,0.3163]
[1757374051774,0.2444,4302.1,4301.5,0.1265]
[1757374051980,0.0764,4301.6,4300.6,0.3163]
[1757374052180,3.2078,4300.9,4300.5,0.1265]
[1757374052380,0.0764,4300.8,4300.0,0.1265]
[1757374052584,3.2842,4300.3,4300.1,0.3163]
[1757374052780,3.2078,4300.3,4299.4,3.2078]
[1757374052982,41.047,4301.2,4298.9,3.2078]
[1757374052983,3.2842,4299.5,4298.9,3.2078]
[1757374053172,3.2842,4299.5,4298.2,0.247]
[1757374053173,0.0764,4299.4,4298.4,3.2078]
[1757374053372,0.0764,4299.4,4298.2,0.247]
[1757374053373,0.0764,4299.3,4298.2,0.3163]
[1757374053574,3.2078,4299.3,4299.0,0.1265]
[1757374053880,2.03962995,4303.6,4299.0,0.1265]
[1757374053881,3.2078,4299.8,4299.5,0.4428]
[1757374054083,3.2078,4299.8,4299.6,0.3163]
[1757374054380,0.25,4301.2,4299.6,0.3163]
[1757374054585,3.2078,4301.8,4301.1,0.3163]
[1757374055081,3.2078,4301.8,4301.6,0.3163]
[1757374055288,3.2078,4301.8,4301.6,0.25]
[1757374055484,3.2078,4302.3,4302.0,0.1265]
[1757374055679,3.2078,4302.8,4302.1,0.3163]
[1757374056184,3.2078,4302.8,4302.6,0.3163]
[1757374056682,3.2078,4302.8,4302.5,0.1265]
[1757374056884,4.25,4302.7,4302.0,0.4428]
[1757374057075,3.2078,4302.1,4302.0,0.4428]
[1757374057793,3.2078,4302.6,4302.5,0.4428]
[1757374058083,3.2078,4303.1,4302.6,0.3163]
[1757374058280,3.2078,4303.1,4303.0,0.4428]
[1757374060182,3.2078,4303.1,4302.5,0.4428]
[1757374060395,40.8,4304.4,4302.0,0.3163]
[1757374060396,3.2078,4302.6,4302.0,0.3163]
[1757374060690,3.2078,4302.1,4301.1,3.4578]
[1757374061184,3.2078,4302.1,4301.6,0.3163]
[1757374061584,3.2078,4302.1,4301.1,3.4578]
[1757374061782,3.2078,4302.1,4301.6,0.3163]
[1757374061985,3.2078,4302.1,4301.1,3.4578]
[1757374062281,3.2078,4302.1,4301.6,0.3163]
[1757374062884,3.2078,4302.1,4302.0,0.4428]
[1757374065592,3.324,4302.1,4302.0,0.4428]
[1757374066285,3.324,4302.1,4302.0,4.4428]
[1757374066487,0.1162,4302.1,4302.0,4.6918]
[1757374066885,3.2078,4303.3,4302.6,0.2969]
[1757374067083,0.1938,4303.2,4302.5,0.1302]
[1757374067392,0.1938,4303.2,4302.6,0.2969]
[1757374067691,3.2078,4302.8,4302.6,0.2969]
[1757374067890,3.2078,4302.8,4302.5,0.1302]
[1757374068090,3.2078,4302.8,4302.6,0.2969]
[1757374068294,3.4016,4302.8,4302.6,0.2969]
[1757374068491,3.4016,4302.8,4302.1,0.2969]
[1757374069092,0.1938,4302.2,4302.1,0.2969]
[1757374069290,0.1938,4302.2,4301.8,0.249]
[1757374069491,0.1938,4302.2,4301.9,0.2969]
[1757374070190,0.1938,4302.2,4301.6,0.2969]
[1757374070394,0.1938,4302.2,4301.8,0.2969]
[1757374070593,3.2078,4302.3,4301.8,0.2969]
[1757374070792,3.2078,4302.3,4301.7,0.249]
[1757374071097,3.2078,4302.3,4301.6,0.2969]
[1757374071297,3.2078,4302.3,4301.7,0.248]
[1757374071497,0.1938,4302.7,4301.8,0.2969]
[1757374072291,0.5697335,4302.6,4302.5,0.1302]
[1757374072492,0.5697335,4302.6,4302.5,0.4271]
[1757374073098,0.7635335,4302.6,4302.0,0.1302]
[1757374073400,0.1938,4302.2,4302.0,0.4271]
[1757374073602,0.1938,4302.2,4302.0,0.1302]
[1757374073896,3.2078,4302.3,4302.1,0.2969]
[1757374074102,0.57055341,4302.2,4302.1,0.2969]
[1757374075805,0.57055341,4302.2,4302.1,0.7166]
[1757374077200,3.2078,4302.9,4302.1,4.7166]
[1757374077506,3.2078,4302.9,4302.8,0.7166]
[1757374077702,3.77584058,4302.9,4302.8,0.7166]
[1757374079703,0.56804058,4302.9,4302.8,0.7166]
[1757374080004,0.56804058,4302.9,4302.8,4.7166]
[1757374082706,0.24204058,4302.9,4302.8,4.7166]
[1757374082901,0.116,4303.2,4303.1,0.7166]
[1757374083105,3.2078,4303.7,4303.1,0.9636]
[1757374083302,4.85353611,4303.7,4303.6,0.2061]
[1757374083505,5.16673611,4303.7,4303.6,0.503]
[1757374083711,5.16673611,4303.7,4303.6,0.7166]
[1757374084412,3.9341,4303.7,4303.6,0.503]
[1757374084713,0.204,4303.3,4303.2,0.7166]
[1757374084917,0.4131,4303.3,4303.0,0.2969]
[1757374085115,0.7263,4302.6,4302.5,0.4531]
[1757374085305,0.7263,4302.6,4302.5,0.247]
[1757374086210,0.204,4302.7,4302.6,0.7166]
[1757374088310,0.3132,4303.0,4302.6,0.4197]
[1757374088619,1.96720952,4303.3,4303.2,0.503]
[1757374089014,1.96720952,4303.3,4303.2,0.2061]
[1757374089214,0.7263,4303.3,4303.2,0.2061]
[1757374090516,1.96720952,4303.3,4303.0,0.247]
[1757374090715,0.7263,4303.1,4303.0,0.75]
[1757374091119,0.7263,4303.1,4303.0,0.9636]
[1757374092025,1.24090952,4303.4,4303.0,1.0938]
[1757374092218,1.44490952,4303.4,4303.3,0.4197]
[1757374092514,0.204,4303.4,4303.3,0.7166]
[1757374092723,3.521,4303.6,4303.5,0.5499]
[1757374092724,3.4118,4303.6,4303.5,0.5499]
[1757374092923,3.4118,4303.6,4303.5,0.8468]
[1757374093815,0.4291,4304.0,4303.5,0.8468]
[1757374094022,0.6331,4304.0,4303.9,0.7166]
[1757374094317,0.5172,4304.0,4303.9,0.7166]
[1757374094524,0.204,4304.0,4303.9,0.7166]
[1757374094817,0.75496456,4304.0,4303.9,0.7166]
[1757374095516,0.1159,4304.2,4303.9,1.13479]
[1757374095820,0.1159,4304.2,4304.1,0.7166]
[1757374096622,3.4181,4304.6,4304.5,0.818]
[1757374096821,3.4181,4304.6,4304.5,1.064]
[1757374097020,3.96880997,4304.6,4304.5,1.064]
[1757374097217,3.4181,4304.6,4304.5,1.064]
[1757374098226,3.9421,4304.6,4304.5,1.064]
[1757374098428,0.546,4304.0,4303.5,0.4266]
[1757374098626,0.546,4304.0,4303.5,0.6896]
[1757374098627,0.7343,4303.6,4303.5,0.6896]
[1757374098827,0.7343,4303.6,4303.5,0.9356]
[1757374101238,0.7343,4303.6,4303.5,0.6896]
[1757374101533,0.7343,4303.6,4303.5,0.9356]
[1757374102335,3.7249,4304.0,4303.9,0.1971]
[1757374102639,3.9421,4304.0,4303.9,0.1971]
[1757374104026,3.9421,4304.0,4303.9,0.4935]
[1757374104639,3.6353,4304.0,4303.5,0.3744]
[1757374104829,0.7343,4303.9,4303.8,0.1971]
[1757374106937,0.7343,4303.9,4303.8,0.4935]
[1757374107737,0.7343,4303.9,4303.8,0.6896]
[1757374110836,0.7343,4303.9,4303.8,0.245]
[1757374111245,0.4275,4302.9,4302.8,0.3932]
[1757374111439,0.4275,4302.9,4302.8,0.6896]
[1757374112141,0.2103,4302.9,4302.8,0.6896]
[1757374114140,0.2103,4303.1,4303.0,0.1284]
[1757374114336,0.4275,4303.1,4303.0,0.5216]
[1757374114643,0.7343,4303.1,4303.0,0.5216]
[1757374114945,0.7343,4303.1,4303.0,0.6896]
[1757374117042,0.2103,4303.1,4303.0,0.818]
[1757374117339,0.3068,4303.9,4303.1,0.2964]
[1757374119234,0.2103,4303.2,4303.1,0.6896]
[1757374122650,0.116,4303.3,4303.2,0.2964]
[1757374122942,0.116,4303.3,4303.2,0.6896]
[1757374123440,0.116,4303.3,4303.2,2.35854548]
[1757374124042,0.116,4303.3,4303.2,0.6896]
[1757374124241,3.4181,4303.6,4303.5,0.818]
[1757374124446,3.4181,4303.6,4303.5,1.062]
[1757374125440,3.5341,4303.6,4303.5,1.062]
[1757374127946,0.3263,4303.6,4303.5,1.48023]
[1757374128249,0.3263,4303.6,4303.5,1.062]
[1757374129350,0.6212,4303.6,4303.5,1.062]
[1757374130046,0.821,4303.6,4303.5,1.062]
[1757374134444,0.5261,4303.6,4303.5,1.062]
[1757374134651,0.821,4303.6,4303.5,1.062]
[1757374135448,0.5261,4303.6,4303.4,1.66889639]
[1757374135753,0.6962,4303.4,4303.0,1.79729639]
[1757374135941,0.2949,4303.3,4303.1,0.242]
[1757374136147,0.6962,4303.2,4303.1,0.242]
[1757374136855,0.6962,4303.2,4303.1,0.9547]
[1757374138562,0.5173,4303.2,4303.1,0.9547]
[1757374139556,0.8122,4303.2,4303.1,0.9547]
[1757374140756,0.116,4303.2,4303.1,0.9547]
[1757374141850,0.116,4303.2,4303.1,2.62477999]